Workbook

Sheet для табл.
F1: «УТВЕРЖДАЮ»
F2: Директор ДЭиБПД
F3: АО «Коломенский Завод»
F4: ______________ Степанкевич В.С.
F7: от «___» ________ 2025_ г.
A9: Ведомость объемов работ Объект: «Реконструкция М-14 Инв. 530000149 ( Устройство фасада. Усиление)»
A11: № | B11: Вид работ | C11: Ед. измер | D11: Объем | E11: Формула расчета | F11: Примечание
B12: Раздел АС "Усиление основных конструкций АБК цеха М14" на территории АО "Коломенский завод", расположенного по адресу: Московская область, г. Коломна, ул. Партизан, 42 (066-04.24-М14-АС)
A13: 1 | B13: Усиление конструктивных элементов: стен кирпичных стальными обоймами | C13: кг | D13: 481.64 | F13: В том числе элементы обойм: - Сталь полосовая (100х8 мм), общий вес – (45,97+16,08+15,83+26,75+25,62)*2=260,5 кг; - Сталь угловая равнополочная, марка стали: Ст3пс, шириной полок 100-100 мм, общий вес – 94,08*2=188,16 кг; - Шпилька резьбовая STARFIX М16х890 (Класс прочности 8.8), общий вес – 8,44*2=16,88 кг, 12 шт.; - Шпилька резьбовая STARFIX М16х820 (Класс прочности 8.8), общий вес – 7,77*2=15,54 кг, 12 шт.; - Гайка стальная оцинкованная сферическая для анкерного стержня, диаметр 16 мм, общий вес – 0,23*2= 0,46 кг, 12 шт.; - Шайбы оцинкованные, диаметр 16 мм, общий вес – 0,06*2=0,12 кг, 12 шт.
A14: 2 | B14: Сверление отверстий в кирпичной стене Ø20 мм l=730 мм | C14: шт. | D14: 24
A15: 3 | B15: Очистка поверхности стен щетками | C15: м2 | D15: 18.62
A16: 4 | B16: Обеспыливание поверхности стен | C16: м2 | D16: 18.62
A17: 5 | B17: Обезжиривание поверхности стен | C17: м2 | D17: 18.62
A18: 6 | B18: Огрунтовка металлических поверхностей в 2 слоя | C18: м2 | D18: 14.44
A19: 7 | B19: Выравнивание поверхности стен цементно-песчаным раствором М50, толщиной 10 мм | C19: м3 | D19: 0.19 | F19: 19м2
A20: 8 | B20: Зачеканка стен под уголками и полосами цементно-песчаным раствором М50, толщиной 10 мм | C20: м3 | D20: 0.08 | F20: 8м2
A21: 9 | B21: Зачеканка трещин между стеной и колонной цементно-песчаным раствором М200 | C21: м3 | D21: 0.05 | F21: 5м2
B22: Усиление стены УС-2
A23: 10 | B23: Усиление конструктивных элементов: стен кирпичных стальными обоймами | C23: кг | D23: 212.14 | F23: В том числе элементы обойм: - Сталь полосовая (100х8 мм), общий вес – (42,96+23,36+21,85+48,23)=136,4 кг; - Сталь угловая равнополочная, марка стали: Ст3пс, шириной полок 100-100 мм, общий вес –62,72 кг; - Шпилька резьбовая STARFIX М16х620 (Класс прочности 8.8), общий вес – 5,88 кг, 6 шт.; - Шпилька резьбовая STARFIX М16х630 (Класс прочности 8.8), общий вес – 6,0 кг, 6 шт.; - Гайка стальная оцинкованная сферическая для анкерного стержня, диаметр 16 мм, общий вес – 0,90 кг, 24 шт.; - Шайбы оцинкованные, диаметр 16 мм, общий вес – 0,24 кг, 24 шт.
A24: 11 | B24: Сверление отверстий в кирпичной стене Ø20 мм l=550 мм, l=530 мм | C24: шт. | D24: 12
A25: 12 | B25: Очистка поверхности стен щетками | C25: м2 | D25: 7.05
A26: 13 | B26: Обеспыливание поверхности стен | C26: м2 | D26: 7.05
A27: 14 | B27: Обезжиривание поверхности стен | C27: м2 | D27: 7.05
A28: 15 | B28: Огрунтовка металлических поверхностей в 2 слоя | C28: м2 | D28: 6.39
A29: 16 | B29: Частичный демонтаж кирпичной кладки | C29: м3 | D29: 0.31
A30: 17 | B30: Выравнивание поверхности стен цементно-песчаным раствором М50, толщиной 10 мм | C30: м3 | D30: 0.07 | E30: =0.07/0.01 -> 7 | F30: 7м2
A31: 18 | B31: Зачеканка стен под уголками и полосами цементно-песчаным раствором М50, толщиной 10 мм | C31: м3 | D31: 0.03 | E31: =0.07/0.01 -> 7 | F31: =F30 -> 7м2
A32: 19 | B32: Зачеканка трещин между стеной и колонной цементно-песчаным раствором М200 | C32: м3 | D32: 0.04
B33: Усиление стены УС-3
A34: 20 | B34: Усиление конструктивных элементов: стен кирпичных стальными обоймами | C34: кг | D34: 183.49 | F34: В том числе элементы обойм: - Сталь полосовая (100х8 мм), общий вес – (105,5+64,31)=169,8 кг; - Шпилька резьбовая STARFIX М16х660 (Класс прочности 8.8), общий вес – 12,51 кг, 12 шт.; - Гайка стальная оцинкованная сферическая для анкерного стержня, диаметр 16 мм, общий вес – 0,90 кг, 24 шт.; - Шайбы оцинкованные, диаметр 16 мм, общий вес – 0,24 кг, 24 шт.
A35: =A34+1 -> 21 | B35: Сверление отверстий в кирпичной стене Ø20 мм l=570 мм | C35: шт. | D35: 12
A36: =A35+1 -> 22 | B36: Очистка поверхности стен щетками | C36: м2 | D36: 7.45
A37: 23 | B37: Обеспыливание поверхности стен | C37: м2 | D37: 7.45
A38: 24 | B38: Обезжиривание поверхности стен | C38: м2 | D38: 7.45
A39: 25 | B39: Огрунтовка металлических поверхностей в 2 слоя | C39: м2 | D39: 5.41
A40: 26 | B40: Выравнивание поверхности стен цементно-песчаным раствором М50, толщиной 10 мм | C40: м3 | D40: 0.07
A41: 27 | B41: Зачеканка стен под уголками и полосами цементно-песчаным раствором М50, толщиной 10 мм | C41: м3 | D41: 0.03
A42: 28 | B42: Зачеканка трещин между стеной и колонной цементно-песчаным раствором М200 | C42: м3 | D42: 0.05
B43: Усиление стены УС-4
A44: =A42+1 -> 29 | B44: Усиление конструктивных элементов: стен кирпичных стальными обоймами | C44: кг | D44: 899.04 | F44: В том числе элементы обойм: - Сталь полосовая (100х8 мм), общий вес – (16,2+10,55+32,91)*6=357,96 кг; - Сталь угловая равнополочная, марка стали: Ст3пс, шириной полок 100-100 мм, общий вес – 64,19*6=385,14 кг; - Шпилька резьбовая STARFIX М16х890 (Класс прочности 8.8), общий вес – 16,87*6=101,22 кг, 72 шт.; - Гайка стальная оцинкованная сферическая для анкерного стержня, диаметр 16 мм, общий вес – 0,45*6= 2,7 кг, 72 шт.; - Шайбы оцинкованные, диаметр 16 мм, общий вес – 0,12*6=0,72 кг, 72 шт; - Сталь арматурная рифленая свариваемая, класс А500С, диаметр 12 мм, общий вес – 4,65*6=27,9 кг; - Сталь арматурная рифленая свариваемая, класс А500С, диаметр 8 мм, общий вес – 3,87*6=23,22 кг
A45: =A44+1 -> 30 | B45: Сверление отверстий в кирпичной стене Ø20 мм l=540 мм, l=270 мм | C45: шт. | D45: 108
A46: =A45+1 -> 31 | B46: Очистка поверхности стен щетками | C46: м2 | D46: 34.49
A47: 32 | B47: Обеспыливание поверхности стен | C47: м2 | D47: 34.49
A48: 33 | B48: Обезжиривание поверхности стен | C48: м2 | D48: 34.49
A49: 34 | B49: Огрунтовка металлических поверхностей в 2 слоя | C49: м2 | D49: 23.98
A50: 35 | B50: Частичный демонтаж кирпичной кладки | C50: м3 | D50: 2.89
A51: 36 | B51: Кладка перегородок из кирпича (КР-р-по250х120х65/1НФ/150/2.0/75) | C51: м3 | D51: 3.18
A52: 37 | B52: Выравнивание поверхности стен цементно-песчаным раствором М50, толщиной 10 мм | C52: м3 | D52: 0.34
A53: 38 | B53: Зачеканка стен под уголками и полосами цементно-песчаным раствором М50, толщиной 10 мм | C53: м3 | D53: 0.11
A54: 39 | B54: Зачеканка трещин между стеной и колонной цементно-песчаным раствором М200 | C54: м3 | D54: 0.08
B55: Усиление стены УС-5
A56: =A54+1 -> 40 | B56: Усиление конструктивных элементов: стен кирпичных стальными обоймами | C56: кг | D56: 214.68 | F56: В том числе элементы обойм: - Сталь полосовая (100х8 мм), общий вес – (43,71+23,36+24,12+48,23)=139,42 кг; - Сталь угловая равнополочная, марка стали: Ст3пс, шириной полок 100-100 мм, общий вес –62,72 кг; - Шпилька резьбовая STARFIX М16х620 (Класс прочности 8.8), общий вес –5,88 кг, 6 шт.; - Шпилька резьбовая STARFIX М16х580 (Класс прочности 8.8), общий вес –5,50 кг, 6 шт.; - Гайка стальная оцинкованная сферическая для анкерного стержня, диаметр 16 мм, общий вес – 0,90 кг, 24 шт.; - Шайбы оцинкованные, диаметр 16 мм, общий вес – 0,24 кг, 24 шт.
A57: =A56+1 -> 41 | B57: Сверление отверстий в кирпичной стене Ø20 мм l=530 мм, l=500 мм | C57: шт. | D57: 12
A58: =A57+1 -> 42 | B58: Очистка поверхности стен щетками | C58: м2 | D58: 7.32
A59: 43 | B59: Обеспыливание поверхности стен | C59: м2 | D59: 7.32
A60: 44 | B60: Обезжиривание поверхности стен | C60: м2 | D60: 7.32
A61: 45 | B61: Огрунтовка металлических поверхностей в 2 слоя | C61: м2 | D61: 6.48
A62: 46 | B62: Выравнивание поверхности стен цементно-песчаным раствором М50, толщиной 10 мм | C62: м3 | D62: 0.07
A63: 47 | B63: Зачеканка стен под уголками и полосами цементно-песчаным раствором М50, толщиной 10 мм | C63: м3 | D63: 0.03
A64: 48 | B64: Зачеканка трещин между стеной и колонной цементно-песчаным раствором М200 | C64: м3 | D64: 0.003
B65: Усиление стены УС-6
A66: =A64+1 -> 49 | B66: Усиление конструктивных элементов: стен кирпичных стальными обоймами | C66: кг | D66: 145.29
A67: =A66+1 -> 50 | B67: Сверление отверстий в кирпичной стене Ø20 мм l=850 мм | C67: шт. | D67: 12
A68: =A67+1 -> 51 | B68: Очистка поверхности стен щетками | C68: м2 | D68: 3.16
A69: 52 | B69: Обеспыливание поверхности стен | C69: м2 | D69: 3.16
A70: 53 | B70: Обезжиривание поверхности стен | C70: м2 | D70: 3.16
A71: 54 | B71: Огрунтовка металлических поверхностей в 2 слоя | C71: м2 | D71: 4
A72: 55 | B72: Выравнивание поверхности стен цементно-песчаным раствором М50, толщиной 10 мм | C72: м3 | D72: 0.03
A73: 56 | B73: Зачеканка стен под уголками и полосами цементно-песчаным раствором М50, толщиной 10 мм | C73: м3 | D73: 0.02
A74: 57 | B74: Зачеканка трещин между стеной и колонной цементно-песчаным раствором М200 | C74: м3 | D74: 0.001
B75: Ремонт трещин 1 этажа
B76: Усиление кирпичной кладки арматурными стержнями
A77: =A74+1 -> 58 | B77: Устройство в кирпичных стенах борозд с использованием штробореза | C77: м.п. | D77: 179.5
A78: =A77+1 -> 59 | B78: Усиление кирпичных стен арматурными стержнями Ø8 А500С | C78: кг | D78: 67.5
A79: =A78+1 -> 60 | B79: Заделка штроб в кирпичных стенах (шириной 30 мм, глубиной 30 мм) | C79: м.п. | D79: 160.96
B80: Ремонт и инъектирование трещин
A81: =A79+1 -> 61 | B81: Заделка штроб в кирпичных стенах (шириной 20 мм, глубиной 20 мм) | C81: м.п. | D81: 18.55
A82: =A81+1 -> 62 | B82: Сверление отверстий в кирпичной стене Ø20 мм l=200 мм | C82: шт. | D82: 770
A83: =A82+1 -> 63 | B83: Инъектирование трещин в кирпичных стенах | C83: м2 | D83: 0.37
B84: Защита металлических элементов
A85: =A83+1 -> 64 | B85: Обеспыливание поверхности металлических элементов | C85: м2 | D85: 10.4
A86: =A85+1 -> 65 | B86: Очистка поверхности металлических элементов щетками | C86: м2 | D86: 10.4
A87: =A86+1 -> 66 | B87: Обезжиривание поверхности металлических элементов | C87: м2 | D87: 10.4
A88: 67 | B88: Огрунтовка поверхности металлических элементов в 2 слоя | C88: м2 | D88: 10.4
B89: Усиление примыкания колонн каркаса к кирпичным стенам 2-го этажа. Усиление стены УС-2.1
A90: =A88+1 -> 68 | B90: Усиление конструктивных элементов: стен кирпичных стальными обоймами | C90: кг | D90: 206.67 | F90: В том числе элементы обойм: - Сталь полосовая (100х8 мм), общий вес – (78,37+33,54+19,22)=131,13 кг; - Сталь угловая равнополочная, марка стали: Ст3пс, шириной полок 100-100 мм, общий вес –69,09 кг; - Шпилька резьбовая STARFIX М16х620 (Класс прочности 8.8), общий вес –5,88 кг, 6 шт.; - Гайка стальная оцинкованная сферическая для анкерного стержня, диаметр 16 мм, общий вес – 0,45 кг, 12 шт.; - Шайбы оцинкованные, диаметр 16 мм, общий вес – 0,12 кг, 12 шт.
A91: =A90+1 -> 69 | B91: Сверление отверстий в стене Ø20 мм l=530 мм | C91: шт. | D91: 6
A92: =A91+1 -> 70 | B92: Очистка поверхности стен щетками | C92: м2 | D92: 7.43
A93: 71 | B93: Обеспыливание поверхности стен | C93: м2 | D93: 7.43
A94: 72 | B94: Обезжиривание поверхностей стен | C94: м2 | D94: 7.43
A95: 73 | B95: Огрунтовка металлических поверхностей в 2 слоя | C95: м2 | D95: 4.18
A96: 74 | B96: Частичный демонтаж кирпичной кладки | C96: м3 | D96: 0.09
A97: 75 | B97: Выравнивание поверхности стен цементно-песчаным раствором М50, толщиной 10 мм | C97: м3 | D97: 0.07
A98: 76 | B98: Зачеканка стен под уголками и полосами цементно-песчаным раствором М50, толщиной 10 мм | C98: м3 | D98: 0.03
A99: 77 | B99: Устройство подливки цементно-песчаным раствором М200 | C99: м3 | D99: 0.19
B100: Усиление стены УС-3.1
A101: =A99+1 -> 78 | B101: Усиление конструктивных элементов: стен кирпичных стальными обоймами | C101: кг | D101: 186.22 | F101: В том числе элементы обойм: - Сталь полосовая (100х8 мм), общий вес – (105,5+67,07)=172,57 кг; - Шпилька резьбовая STARFIX М16х660 (Класс прочности 8.8), общий вес –12,51 кг, 12 шт.; - Гайка стальная оцинкованная сферическая для анкерного стержня, диаметр 16 мм, общий вес – 0,90 кг, 24 шт.; - Шайбы оцинкованные, диаметр 16 мм, общий вес – 0,24 кг, 24 шт.
A102: =A101+1 -> 79 | B102: Сверление отверстий в стене Ø20 мм l=530 мм | C102: шт. | D102: 12
A103: =A102+1 -> 80 | B103: Очистка поверхности стен щетками | C103: м2 | D103: 7.56
A104: 81 | B104: Обеспыливание поверхности стен
A105: 82 | B105: Обезжиривание поверхностей стен | C105: м2 | D105: 7.56
A106: 83 | B106: Огрунтовка металлических поверхностей в 2 слоя | C106: м2 | D106: 5.5
A107: 84 | B107: Выравнивание поверхности стен цементно-песчаным раствором М50, толщиной 10 мм | C107: м3 | D107: 0.08
A108: 85 | B108: Зачеканка стен под уголками и полосами цементно-песчаным раствором М50, толщиной 10 мм | C108: м3 | D108: 0.03
B109: Усиление стены УС-4.1/УС-4.3
A110: =A108+1 -> 86 | B110: Усиление конструктивных элементов: стен кирпичных стальными обоймами | C110: кг | D110: 1192.48 | F110: В том числе элементы обойм: - Сталь полосовая (100х8 мм), общий вес – (16,2+10,55+33,54)*8=482,32 кг; - Сталь угловая равнополочная, марка стали: Ст3пс, шириной полок 100-100 мм, общий вес – 65,42*8=523,36 кг; - Шпилька резьбовая STARFIX М16х890 (Класс прочности 8.8), общий вес – 16,87*8=134,96 кг, 96 шт.; - Гайка стальная оцинкованная сферическая для анкерного стержня, диаметр 16 мм, общий вес – 0,45*8= 3,6 кг, 96 шт.; - Шайбы оцинкованные, диаметр 16 мм, общий вес – 0,12*8=0,96 кг, 96 шт.; - Сталь арматурная рифленая свариваемая, класс А500С, диаметр 12 мм, общий вес – 4,44*6=26,64 кг; - Сталь арматурная рифленая свариваемая, класс А500С, диаметр 8 мм, общий вес – 3,44*6=20,64 кг
A111: =A110+1 -> 87 | B111: Сверление отверстий в стене Ø20 мм l=530 мм, l=270 мм | C111: шт. | D111: 128
A112: =A111+1 -> 88 | B112: Очистка поверхности стен щетками | C112: м2 | D112: 58.43
A113: 89 | B113: Обеспыливание поверхности стен | C113: м2 | D113: 58.43
A114: 90 | B114: Обезжиривание поверхностей стен | C114: м2 | D114: 58.43
A115: 91 | B115: Огрунтовка металлических поверхностей в 2 слоя | C115: м2 | D115: 32.44
A116: 92 | B116: Частичный демонтаж кирпичной кладки | C116: м3 | D116: 2.87
A117: 93 | B117: Кладка перегородок из кирпича (КР-р-по250х120х65/1НФ/150/2.0/75) | C117: м3 | D117: 3.16
A118: 94 | B118: Выравнивание поверхности стен цементно-песчаным раствором М50, толщиной 10 мм | C118: м3 | D118: 0.58
A119: 95 | B119: Зачеканка стен под уголками и полосами цементно-песчаным раствором М50, толщиной 10 мм | C119: м3 | D119: 0.14
A120: 96 | B120: Зачеканка трещин между стеной и колонной цементно-песчаным раствором М200 | C120: м3 | D120: 0.1
B121: Примыкание колонны к стеновой панели
A122: =A120+1 -> 97 | B122: Устройство уплотнителя (шнур Вилатерм 60) в примыкании колонны к стеновым панелям | C122: м.п. | D122: 73
A123: =A122+1 -> 98 | B123: Заделка примыкания колонны к стеновым панелям цементно-песчаным раствором М200 | C123: м3 | D123: 0.39
B124: Усиление примыкания колонн каркаса к кирпичным стенам 3-го этажа
B125: Усиление стены УС-2.1
A126: =A123+1 -> 99 | B126: Усиление конструктивных элементов: стен кирпичных стальными обоймами | C126: кг | D126: 206.67 | F126: В том числе элементы обойм: - Сталь полосовая (100х8 мм), общий вес – (78,37+33,54+19,22)=131,13 кг; - Сталь угловая равнополочная, марка стали: Ст3пс, шириной полок 100-100 мм, общий вес – 69,09 кг; - Шпилька резьбовая STARFIX М16х620 (Класс прочности 8.8), общий вес –5,88 кг, 6 шт.; - Гайка стальная оцинкованная сферическая для анкерного стержня, диаметр 16 мм, общий вес – 0,45 кг, 12 шт.; - Шайбы оцинкованные, диаметр 16 мм, общий вес – 0,12 кг, 12 шт.
A127: =A126+1 -> 100 | B127: Сверление отверстий в стене Ø20 мм l=530 мм | C127: шт. | D127: 6
A128: =A127+1 -> 101 | B128: Очистка поверхности стен щетками | C128: м2 | D128: 7.43
A129: 102 | B129: Обеспыливание поверхности стен | C129: м2 | D129: 7.43
A130: 103 | B130: Обезжиривание поверхностей стен | C130: м2 | D130: 7.43
A131: 104 | B131: Огрунтовка металлических поверхностей в 2 слоя | C131: м2 | D131: 4.18
A132: 105 | B132: Выравнивание поверхности стен цементно-песчаным раствором М50, толщиной 10 мм | C132: м3 | D132: 0.07
A133: 106 | B133: Зачеканка стен под уголками и полосами цементно-песчаным раствором М50, толщиной 10 мм | C133: м3 | D133: 0.03
A134: 107 | B134: Устройство подливки цементно-песчаным раствором М200 | C134: м3 | D134: 0.19
B135: Усиление стены УС-3.1
A136: =A134+1 -> 108 | B136: Усиление конструктивных элементов: стен кирпичных стальными обоймами | C136: кг | D136: 186.22 | F136: В том числе элементы обойм: - Сталь полосовая (100х8 мм), общий вес – (105,5+67,07)=172,57 кг; - Шпилька резьбовая STARFIX М16х660 (Класс прочности 8.8), общий вес –12,51 кг, 12 шт.; - Гайка стальная оцинкованная сферическая для анкерного стержня, диаметр 16 мм, общий вес – 0,90 кг, 24 шт.; - Шайбы оцинкованные, диаметр 16 мм, общий вес – 0,24 кг, 24 шт.
A137: =A136+1 -> 109 | B137: Сверление отверстий в стене Ø20 мм l=530 мм | C137: шт. | D137: 12
A138: =A137+1 -> 110 | B138: Очистка поверхности стен щетками | C138: м2 | D138: 7.56
A139: 111 | B139: Обеспыливание поверхности стен | C139: м2 | D139: 7.56
A140: 112 | B140: Обезжиривание поверхностей стен | C140: м2 | D140: 7.56
A141: 113 | B141: Огрунтовка металлических поверхностей в 2 слоя | C141: м2 | D141: 5.5
A142: 114 | B142: Выравнивание поверхности стен цементно-песчаным раствором М50, толщиной 10 мм | C142: м3 | D142: 0.08
A143: 115 | B143: Зачеканка стен под уголками и полосами цементно-песчаным раствором М50, толщиной 10 мм | C143: м3 | D143: 0.03
B144: Усиление стены УС-4.1/УС-4.3
A145: =A143+1 -> 116 | B145: Усиление конструктивных элементов: стен кирпичных стальными обоймами | C145: кг | D145: 1192.48 | F145: В том числе элементы обойм: - Сталь полосовая (100х8 мм), общий вес – (16,2+10,55+33,54)*8=482,32 кг; - Сталь угловая равнополочная, марка стали: Ст3пс, шириной полок 100-100 мм, общий вес – 65,42*8=521,6 кг; - Шпилька резьбовая STARFIX М16х890 (Класс прочности 8.8), общий вес – 16,87*8=134,96 кг, 96 шт.; - Гайка стальная оцинкованная сферическая для анкерного стержня, диаметр 16 мм, общий вес – 0,45*8= 3,6 кг, 96 шт.; - Шайбы оцинкованные, диаметр 16 мм, общий вес – 0,12*8=0,96 кг, 96 шт.; - Сталь арматурная рифленая свариваемая, класс А500С, диаметр 12 мм, общий вес – 4,44*6=26,64 кг; - Сталь арматурная рифленая свариваемая, класс А500С, диаметр 8 мм, общий вес – 3,44*6=20,64 кг
A146: =A145+1 -> 117 | B146: Сверление отверстий в стене Ø20 мм l=530 мм, l=270 мм | C146: шт. | D146: 128
A147: =A146+1 -> 118 | B147: Очистка поверхности стен щетками | C147: м2 | D147: 58.43
A148: 119 | B148: Обеспыливание поверхности стен | C148: м2 | D148: 58.43
A149: 120 | B149: Обезжиривание поверхностей стен | C149: м2 | D149: 58.43
A150: 121 | B150: Огрунтовка металлических поверхностей в 2 слоя | C150: м2 | D150: 32.44
A151: 122 | B151: Частичный демонтаж кирпичной кладки | C151: м3 | D151: 2.87
A152: 123 | B152: Кладка перегородок из кирпича (КР-р-по250х120х65/1НФ/150/2.0/75) | C152: м3 | D152: 3.16
A153: 124 | B153: Выравнивание поверхности стен цементно-песчаным раствором М50, толщиной 10 мм | C153: м3 | D153: 0.58
A154: 125 | B154: Зачеканка стен под уголками и полосами цементно-песчаным раствором М50, толщиной 10 мм | C154: м3 | D154: 0.14
A155: 126 | B155: Зачеканка трещин между стеной и колонной цементно-песчаным раствором М200 | C155: м3 | D155: 0.1
B156: Примыкание колонны к стеновой панели
A157: =A155+1 -> 127 | B157: Устройство уплотнителя в примыкании колонны к стеновым панелям | C157: м.п. | D157: 73
A158: =A157+1 -> 128 | B158: Заделка примыкания колонны к стеновым панелям цементно-песчаным раствором М200 | C158: м3 | D158: 0.39
B159: Усиление примыкания колонн каркаса к кирпичным стенам 4-го этажа
B160: Усиление стены УС-2.2
A161: =A158+1 -> 129 | B161: Усиление конструктивных элементов: стен кирпичных стальными обоймами | C161: кг | D161: 498.5 | F161: В том числе элементы обойм: - Сталь полосовая (100х8 мм), общий вес – (91,44+43,33+22,42)*2=314,38; - Сталь угловая равнополочная, марка стали: Ст3пс, шириной полок 100-100 мм, общий вес – 84,53*2=169,06 кг; - Шпилька резьбовая STARFIX М16х620 (Класс прочности 8.8), общий вес –6,86*2= 13,72 кг, 14 шт.; - Гайка стальная оцинкованная сферическая для анкерного стержня, диаметр 16 мм, общий вес – 1,06 кг, 28 шт.; - Шайбы оцинкованные, диаметр 16 мм, общий вес – 0,28 кг, 28 шт.
A162: =A161+1 -> 130 | B162: Частичный демонтаж кирпичной кладки | C162: м3 | D162: 0.25
A163: =A162+1 -> 131 | B163: Сверление отверстий в стене Ø20 мм l=530 мм | C163: шт. | D163: 12
A164: 132 | B164: Очистка поверхности стен щетками | C164: м2 | D164: 18.55
A165: 133 | B165: Обеспыливание поверхности стен | C165: м2 | D165: 18.55
A166: 134 | B166: Обезжиривание поверхностей стен | C166: м2 | D166: 18.55
A167: 135 | B167: Огрунтовка металлических поверхностей в 2 слоя | C167: м2 | D167: 10.01
A168: 136 | B168: Выравнивание поверхности стен цементно-песчаным раствором М50, толщиной 10 мм | C168: м3 | D168: 0.19
A169: 137 | B169: Зачеканка стен под уголками и полосами цементно-песчаным раствором М50, толщиной 10 мм | C169: м3 | D169: 0.07
A170: 138 | B170: Устройство подливки цементно-песчаным раствором М200 | C170: м3 | D170: 0.24
B171: Усиление стены УС-4.2/УС-4.4
A172: =A170+1 -> 139 | B172: Усиление конструктивных элементов: стен кирпичных стальными обоймами | C172: кг | D172: 1308.56 | F172: В том числе элементы обойм: - Сталь полосовая (100х8 мм), общий вес – (18,9+12,31+43,33)*7=521,78 кг; - Сталь угловая равнополочная, марка стали: Ст3пс, шириной полок 100-100 мм, общий вес – 84,53*7=591,71 кг; - Шпилька резьбовая STARFIX М16х890 (Класс прочности 8.8), общий вес – 19,69*7=137,83 кг, 98 шт.; - Гайка стальная оцинкованная сферическая для анкерного стержня, диаметр 16 мм, общий вес – 0,53*7= 3,71 кг, 98 шт.; - Шайбы оцинкованные, диаметр 16 мм, общий вес – 0,14*7=0,98 кг, 98 шт.; - Сталь арматурная рифленая свариваемая, класс А500С, диаметр 12 мм, общий вес – 5,77*5=28,85 кг; - Сталь арматурная рифленая свариваемая, класс А500С, диаметр 8 мм, общий вес – 4,74*5=23,7 кг
A173: =A172+1 -> 140 | B173: Сверление отверстий в стене Ø20 мм l=530 мм, l=270 мм | C173: шт. | D173: 128
A174: =A173+1 -> 141 | B174: Очистка поверхности стен щетками | C174: м2 | D174: 68.43
A175: 142 | B175: Обеспыливание поверхности стен | C175: м2 | D175: 68.43
A176: 143 | B176: Обезжиривание поверхностей стен | C176: м2 | D176: 68.43
A177: 144 | B177: Огрунтовка металлических поверхностей в 2 слоя | C177: м2 | D177: 35.94
A178: 145 | B178: Частичный демонтаж кирпичной кладки | C178: м3 | D178: 3.1
A179: 146 | B179: Кладка перегородок из кирпича (КР-р-по250х120х65/1НФ/150/2.0/75) | C179: м3 | D179: 3.41
A180: 147 | B180: Выравнивание поверхности стен цементно-песчаным раствором М50, толщиной 10 мм | C180: м3 | D180: 0.68
B181: Примыкание колонны к стеновой панели
A182: =A180+1 -> 148 | B182: Устройство уплотнителя в примыкании колонны к стеновым панелям | C182: м.п. | D182: 93.1
A183: =A182+1 -> 149 | B183: Заделка примыкания колонны к стеновым панелям цементно-песчаным раствором М200 | C183: м3 | D183: 0.49
B184: Усиление примыкания колонн каркаса к кирпичным стенам кровли
B185: Усиление стены УС-4
A186: =A183+1 -> 150 | B186: Усиление конструктивных элементов: стен кирпичных стальными обоймами | C186: кг | D186: 307.02 | F186: В том числе элементы обойм: - Сталь полосовая (100х8 мм), общий вес – (16,2+10,55+34,16)*2=121,82 кг; - Сталь угловая равнополочная, марка стали: Ст3пс, шириной полок 100-100 мм, общий вес – 66,64*2=133,28 кг; - Шпилька резьбовая STARFIX М16х890 (Класс прочности 8.8), общий вес – 16,87*2=33,74 кг, 24 шт.; - Гайка стальная оцинкованная сферическая для анкерного стержня, диаметр 16 мм, общий вес – 0,45*2= 0,90 кг, 24 шт.; - Шайбы оцинкованные, диаметр 16 мм, общий вес – 0,12*2=0,24 кг, 24 шт.; - Сталь арматурная рифленая свариваемая, класс А500С, диаметр 12 мм, общий вес – 4,65*2=9,3 кг; - Сталь арматурная рифленая свариваемая, класс А500С, диаметр 8 мм, общий вес – 3,87*2=7,74 кг
A187: =A186+1 -> 151 | B187: Сверление отверстий в стене Ø20 мм l=540 мм, l=270 мм | C187: шт. | D187: 60
A188: =A187+1 -> 152 | B188: Очистка поверхности стен щетками | C188: м2 | D188: 11.5
A189: 153 | B189: Обеспыливание поверхности стен | C189: м2 | D189: 11.5
A190: 154 | B190: Обезжиривание поверхностей стен | C190: м2 | D190: 11.5
A191: 155 | B191: Огрунтовка металлических поверхностей в 2 слоя | C191: м2 | D191: 24.69
A192: 156 | B192: Частичный демонтаж кирпичной кладки | C192: м3 | D192: 0.78
A193: 157 | B193: Кладка перегородок из кирпича (КР-р-по250х120х65/1НФ/150/2.0/75) | C193: м3 | D193: 0.86
A194: 158 | B194: Выравнивание поверхности стен цементно-песчаным раствором М50, толщиной 10 мм | C194: м3 | D194: 0.11
A195: 159 | B195: Зачеканка стен под уголками и полосами цементно-песчаным раствором М50, толщиной 10 мм | C195: м3 | D195: 0.11
A196: 160 | B196: Зачеканка трещин между стеной и колонной цементно-песчаным раствором М200 | C196: м3 | D196: 0.11
B197: Устройство отмостки и крылец
B198: Устройство отмостки
A199: =A196+1 -> 161 | B199: Разработка грунта вручную, h=0,38 м | C199: м3 | D199: 30.4
A200: =A199+1 -> 162 | B200: Перевозка грузов I класса автомобилями-самосвалами грузоподъемностью 10 т работающих вне карьера на расстояние до 47 км | C200: т | D200: 34.2
A201: =A200+1 -> 163 | B201: Погрузка при автомобильных перевозках мусора строительного с погрузкой вручную | C201: т | D201: 34.2
A202: 164 | B202: Обратная засыпка грунта вручную, h=0,38 м | C202: м3 | D202: 11.4
A203: 165 | B203: Уплотнение грунта пневматическими трамбовками, группа грунтов: 1-2 | C203: м3 | D203: 11.4
A204: 166 | B204: Устройство щебеночного основания под фундамент из щебня М400 фр. 20-40 | C204: м3 | D204: 2.8
... 727 more rows

Sheet Лист1
F1: «УТВЕРЖДАЮ»
F2: Директор ДЭиБПД
F3: АО «Коломенский Завод»
F4: ______________ Степанкевич В.С.
F7: от «___» ________ 2025_ г.
A9: Ведомость объемов работ Объект: «Реконструкция М-14 Инв. 530000149 ( Устройство фасада. Усиление)»
A11: № | B11: Вид работ | C11: Ед. измер | D11: Объем | E11: Формула расчета | F11: Примечание
B12: Раздел АС "Усиление основных конструкций АБК цеха М14" на территории АО "Коломенский завод", расположенного по адресу: Московская область, г. Коломна, ул. Партизан, 42 (066-04.24-М14-АС)
A13: 1 | B13: Усиление конструктивных элементов: стен кирпичных стальными обоймами | C13: кг | D13: 481.64 | F13: В том числе элементы обойм: - Сталь полосовая (100х8 мм), общий вес – (45,97+16,08+15,83+26,75+25,62)*2=260,5 кг; - Сталь угловая равнополочная, марка стали: Ст3пс, шириной полок 100-100 мм, общий вес – 94,08*2=188,16 кг; - Шпилька резьбовая STARFIX М16х890 (Класс прочности 8.8), общий вес – 8,44*2=16,88 кг, 12 шт.; - Шпилька резьбовая STARFIX М16х820 (Класс прочности 8.8), общий вес – 7,77*2=15,54 кг, 12 шт.; - Гайка стальная оцинкованная сферическая для анкерного стержня, диаметр 16 мм, общий вес – 0,23*2= 0,46 кг, 12 шт.; - Шайбы оцинкованные, диаметр 16 мм, общий вес – 0,06*2=0,12 кг, 12 шт.
A14: 2 | B14: Сверление отверстий в кирпичной стене Ø20 мм l=730 мм | C14: шт. | D14: 24
A15: 3 | B15: Очистка поверхности стен щетками | C15: м2 | D15: 18.62
A16: 4 | B16: Обеспыливание поверхности стен | C16: м2 | D16: 18.62
A17: 5 | B17: Обезжиривание поверхности стен | C17: м2 | D17: 18.62
A18: 6 | B18: Огрунтовка металлических поверхностей в 2 слоя | C18: м2 | D18: 14.44
A19: 7 | B19: Выравнивание поверхности стен цементно-песчаным раствором М50, толщиной 10 мм | C19: м3 | D19: 0.19 | F19: 19м2
A20: 8 | B20: Зачеканка стен под уголками и полосами цементно-песчаным раствором М50, толщиной 10 мм | C20: м3 | D20: 0.08 | F20: 8м2
A21: 9 | B21: Зачеканка трещин между стеной и колонной цементно-песчаным раствором М200 | C21: м3 | D21: 0.05 | F21: 5м2
B22: Усиление стены УС-2
A23: 10 | B23: Усиление конструктивных элементов: стен кирпичных стальными обоймами | C23: кг | D23: 212.14 | F23: В том числе элементы обойм: - Сталь полосовая (100х8 мм), общий вес – (42,96+23,36+21,85+48,23)=136,4 кг; - Сталь угловая равнополочная, марка стали: Ст3пс, шириной полок 100-100 мм, общий вес –62,72 кг; - Шпилька резьбовая STARFIX М16х620 (Класс прочности 8.8), общий вес – 5,88 кг, 6 шт.; - Шпилька резьбовая STARFIX М16х630 (Класс прочности 8.8), общий вес – 6,0 кг, 6 шт.; - Гайка стальная оцинкованная сферическая для анкерного стержня, диаметр 16 мм, общий вес – 0,90 кг, 24 шт.; - Шайбы оцинкованные, диаметр 16 мм, общий вес – 0,24 кг, 24 шт.
A24: 11 | B24: Сверление отверстий в кирпичной стене Ø20 мм l=550 мм, l=530 мм | C24: шт. | D24: 12
A25: 12 | B25: Очистка поверхности стен щетками | C25: м2 | D25: 7.05
A26: 13 | B26: Обеспыливание поверхности стен | C26: м2 | D26: 7.05
A27: 14 | B27: Обезжиривание поверхности стен | C27: м2 | D27: 7.05
A28: 15 | B28: Огрунтовка металлических поверхностей в 2 слоя | C28: м2 | D28: 6.39
A29: 16 | B29: Частичный демонтаж кирпичной кладки | C29: м3 | D29: 0.31
A30: 17 | B30: Выравнивание поверхности стен цементно-песчаным раствором М50, толщиной 10 мм | C30: м3 | D30: 0.07 | E30: =0.07/0.01 -> 7 | F30: 7м2
A31: 18 | B31: Зачеканка стен под уголками и полосами цементно-песчаным раствором М50, толщиной 10 мм | C31: м3 | D31: 0.03 | E31: =0.07/0.01 -> 7 | F31: =F30 -> 7м2
A32: 19 | B32: Зачеканка трещин между стеной и колонной цементно-песчаным раствором М200 | C32: м3 | D32: 0.04
B33: Усиление стены УС-3
A34: 20 | B34: Усиление конструктивных элементов: стен кирпичных стальными обоймами | C34: кг | D34: 183.49 | F34: В том числе элементы обойм: - Сталь полосовая (100х8 мм), общий вес – (105,5+64,31)=169,8 кг; - Шпилька резьбовая STARFIX М16х660 (Класс прочности 8.8), общий вес – 12,51 кг, 12 шт.; - Гайка стальная оцинкованная сферическая для анкерного стержня, диаметр 16 мм, общий вес – 0,90 кг, 24 шт.; - Шайбы оцинкованные, диаметр 16 мм, общий вес – 0,24 кг, 24 шт.
A35: =A34+1 -> 21 | B35: Сверление отверстий в кирпичной стене Ø20 мм l=570 мм | C35: шт. | D35: 12
A36: =A35+1 -> 22 | B36: Очистка поверхности стен щетками | C36: м2 | D36: 7.45
A37: 23 | B37: Обеспыливание поверхности стен | C37: м2 | D37: 7.45
A38: 24 | B38: Обезжиривание поверхности стен | C38: м2 | D38: 7.45
A39: 25 | B39: Огрунтовка металлических поверхностей в 2 слоя | C39: м2 | D39: 5.41
A40: 26 | B40: Выравнивание поверхности стен цементно-песчаным раствором М50, толщиной 10 мм | C40: м3 | D40: 0.07
A41: 27 | B41: Зачеканка стен под уголками и полосами цементно-песчаным раствором М50, толщиной 10 мм | C41: м3 | D41: 0.03
A42: 28 | B42: Зачеканка трещин между стеной и колонной цементно-песчаным раствором М200 | C42: м3 | D42: 0.05
B43: Усиление стены УС-4
A44: =A42+1 -> 29 | B44: Усиление конструктивных элементов: стен кирпичных стальными обоймами | C44: кг | D44: 899.04 | F44: В том числе элементы обойм: - Сталь полосовая (100х8 мм), общий вес – (16,2+10,55+32,91)*6=357,96 кг; - Сталь угловая равнополочная, марка стали: Ст3пс, шириной полок 100-100 мм, общий вес – 64,19*6=385,14 кг; - Шпилька резьбовая STARFIX М16х890 (Класс прочности 8.8), общий вес – 16,87*6=101,22 кг, 72 шт.; - Гайка стальная оцинкованная сферическая для анкерного стержня, диаметр 16 мм, общий вес – 0,45*6= 2,7 кг, 72 шт.; - Шайбы оцинкованные, диаметр 16 мм, общий вес – 0,12*6=0,72 кг, 72 шт; - Сталь арматурная рифленая свариваемая, класс А500С, диаметр 12 мм, общий вес – 4,65*6=27,9 кг; - Сталь арматурная рифленая свариваемая, класс А500С, диаметр 8 мм, общий вес – 3,87*6=23,22 кг
A45: =A44+1 -> 30 | B45: Сверление отверстий в кирпичной стене Ø20 мм l=540 мм, l=270 мм | C45: шт. | D45: 108
A46: =A45+1 -> 31 | B46: Очистка поверхности стен щетками | C46: м2 | D46: 34.49
A47: 32 | B47: Обеспыливание поверхности стен | C47: м2 | D47: 34.49
A48: 33 | B48: Обезжиривание поверхности стен | C48: м2 | D48: 34.49
A49: 34 | B49: Огрунтовка металлических поверхностей в 2 слоя | C49: м2 | D49: 23.98
A50: 35 | B50: Частичный демонтаж кирпичной кладки | C50: м3 | D50: 2.89
A51: 36 | B51: Кладка перегородок из кирпича (КР-р-по250х120х65/1НФ/150/2.0/75) | C51: м3 | D51: 3.18
A52: 37 | B52: Выравнивание поверхности стен цементно-песчаным раствором М50, толщиной 10 мм | C52: м3 | D52: 0.34
A53: 38 | B53: Зачеканка стен под уголками и полосами цементно-песчаным раствором М50, толщиной 10 мм | C53: м3 | D53: 0.11
A54: 39 | B54: Зачеканка трещин между стеной и колонной цементно-песчаным раствором М200 | C54: м3 | D54: 0.08
B55: Усиление стены УС-5
A56: =A54+1 -> 40 | B56: Усиление конструктивных элементов: стен кирпичных стальными обоймами | C56: кг | D56: 214.68 | F56: В том числе элементы обойм: - Сталь полосовая (100х8 мм), общий вес – (43,71+23,36+24,12+48,23)=139,42 кг; - Сталь угловая равнополочная, марка стали: Ст3пс, шириной полок 100-100 мм, общий вес –62,72 кг; - Шпилька резьбовая STARFIX М16х620 (Класс прочности 8.8), общий вес –5,88 кг, 6 шт.; - Шпилька резьбовая STARFIX М16х580 (Класс прочности 8.8), общий вес –5,50 кг, 6 шт.; - Гайка стальная оцинкованная сферическая для анкерного стержня, диаметр 16 мм, общий вес – 0,90 кг, 24 шт.; - Шайбы оцинкованные, диаметр 16 мм, общий вес – 0,24 кг, 24 шт.
A57: =A56+1 -> 41 | B57: Сверление отверстий в кирпичной стене Ø20 мм l=530 мм, l=500 мм | C57: шт. | D57: 12
A58: =A57+1 -> 42 | B58: Очистка поверхности стен щетками | C58: м2 | D58: 7.32
A59: 43 | B59: Обеспыливание поверхности стен | C59: м2 | D59: 7.32
A60: 44 | B60: Обезжиривание поверхности стен | C60: м2 | D60: 7.32
A61: 45 | B61: Огрунтовка металлических поверхностей в 2 слоя | C61: м2 | D61: 6.48
A62: 46 | B62: Выравнивание поверхности стен цементно-песчаным раствором М50, толщиной 10 мм | C62: м3 | D62: 0.07
A63: 47 | B63: Зачеканка стен под уголками и полосами цементно-песчаным раствором М50, толщиной 10 мм | C63: м3 | D63: 0.03
A64: 48 | B64: Зачеканка трещин между стеной и колонной цементно-песчаным раствором М200 | C64: м3 | D64: 0.003
B65: Усиление стены УС-6
A66: =A64+1 -> 49 | B66: Усиление конструктивных элементов: стен кирпичных стальными обоймами | C66: кг | D66: 145.29
A67: =A66+1 -> 50 | B67: Сверление отверстий в кирпичной стене Ø20 мм l=850 мм | C67: шт. | D67: 12
A68: =A67+1 -> 51 | B68: Очистка поверхности стен щетками | C68: м2 | D68: 3.16
A69: 52 | B69: Обеспыливание поверхности стен | C69: м2 | D69: 3.16
A70: 53 | B70: Обезжиривание поверхности стен | C70: м2 | D70: 3.16
A71: 54 | B71: Огрунтовка металлических поверхностей в 2 слоя | C71: м2 | D71: 4
A72: 55 | B72: Выравнивание поверхности стен цементно-песчаным раствором М50, толщиной 10 мм | C72: м3 | D72: 0.03
A73: 56 | B73: Зачеканка стен под уголками и полосами цементно-песчаным раствором М50, толщиной 10 мм | C73: м3 | D73: 0.02
A74: 57 | B74: Зачеканка трещин между стеной и колонной цементно-песчаным раствором М200 | C74: м3 | D74: 0.001
B75: Ремонт трещин 1 этажа
B76: Усиление кирпичной кладки арматурными стержнями
A77: =A74+1 -> 58 | B77: Устройство в кирпичных стенах борозд с использованием штробореза | C77: м.п. | D77: 179.5
A78: =A77+1 -> 59 | B78: Усиление кирпичных стен арматурными стержнями Ø8 А500С | C78: кг | D78: 67.5
A79: =A78+1 -> 60 | B79: Заделка штроб в кирпичных стенах (шириной 30 мм, глубиной 30 мм) | C79: м.п. | D79: 160.96
B80: Ремонт и инъектирование трещин
A81: =A79+1 -> 61 | B81: Заделка штроб в кирпичных стенах (шириной 20 мм, глубиной 20 мм) | C81: м.п. | D81: 18.55
A82: =A81+1 -> 62 | B82: Сверление отверстий в кирпичной стене Ø20 мм l=200 мм | C82: шт. | D82: 770
A83: =A82+1 -> 63 | B83: Инъектирование трещин в кирпичных стенах | C83: м2 | D83: 0.37
B84: Защита металлических элементов
A85: =A83+1 -> 64 | B85: Обеспыливание поверхности металлических элементов | C85: м2 | D85: 10.4
A86: =A85+1 -> 65 | B86: Очистка поверхности металлических элементов щетками | C86: м2 | D86: 10.4
A87: =A86+1 -> 66 | B87: Обезжиривание поверхности металлических элементов | C87: м2 | D87: 10.4
A88: 67 | B88: Огрунтовка поверхности металлических элементов в 2 слоя | C88: м2 | D88: 10.4
B89: Усиление примыкания колонн каркаса к кирпичным стенам 2-го этажа. Усиление стены УС-2.1
A90: =A88+1 -> 68 | B90: Усиление конструктивных элементов: стен кирпичных стальными обоймами | C90: кг | D90: 206.67 | F90: В том числе элементы обойм: - Сталь полосовая (100х8 мм), общий вес – (78,37+33,54+19,22)=131,13 кг; - Сталь угловая равнополочная, марка стали: Ст3пс, шириной полок 100-100 мм, общий вес –69,09 кг; - Шпилька резьбовая STARFIX М16х620 (Класс прочности 8.8), общий вес –5,88 кг, 6 шт.; - Гайка стальная оцинкованная сферическая для анкерного стержня, диаметр 16 мм, общий вес – 0,45 кг, 12 шт.; - Шайбы оцинкованные, диаметр 16 мм, общий вес – 0,12 кг, 12 шт.
A91: =A90+1 -> 69 | B91: Сверление отверстий в стене Ø20 мм l=530 мм | C91: шт. | D91: 6
A92: =A91+1 -> 70 | B92: Очистка поверхности стен щетками | C92: м2 | D92: 7.43
A93: 71 | B93: Обеспыливание поверхности стен | C93: м2 | D93: 7.43
A94: 72 | B94: Обезжиривание поверхностей стен | C94: м2 | D94: 7.43
A95: 73 | B95: Огрунтовка металлических поверхностей в 2 слоя | C95: м2 | D95: 4.18
A96: 74 | B96: Частичный демонтаж кирпичной кладки | C96: м3 | D96: 0.09
A97: 75 | B97: Выравнивание поверхности стен цементно-песчаным раствором М50, толщиной 10 мм | C97: м3 | D97: 0.07
A98: 76 | B98: Зачеканка стен под уголками и полосами цементно-песчаным раствором М50, толщиной 10 мм | C98: м3 | D98: 0.03
A99: 77 | B99: Устройство подливки цементно-песчаным раствором М200 | C99: м3 | D99: 0.19
B100: Усиление стены УС-3.1
A101: =A99+1 -> 78 | B101: Усиление конструктивных элементов: стен кирпичных стальными обоймами | C101: кг | D101: 186.22 | F101: В том числе элементы обойм: - Сталь полосовая (100х8 мм), общий вес – (105,5+67,07)=172,57 кг; - Шпилька резьбовая STARFIX М16х660 (Класс прочности 8.8), общий вес –12,51 кг, 12 шт.; - Гайка стальная оцинкованная сферическая для анкерного стержня, диаметр 16 мм, общий вес – 0,90 кг, 24 шт.; - Шайбы оцинкованные, диаметр 16 мм, общий вес – 0,24 кг, 24 шт.
A102: =A101+1 -> 79 | B102: Сверление отверстий в стене Ø20 мм l=530 мм | C102: шт. | D102: 12
A103: =A102+1 -> 80 | B103: Очистка поверхности стен щетками | C103: м2 | D103: 7.56
A104: 81 | B104: Обеспыливание поверхности стен
A105: 82 | B105: Обезжиривание поверхностей стен | C105: м2 | D105: 7.56
A106: 83 | B106: Огрунтовка металлических поверхностей в 2 слоя | C106: м2 | D106: 5.5
A107: 84 | B107: Выравнивание поверхности стен цементно-песчаным раствором М50, толщиной 10 мм | C107: м3 | D107: 0.08
A108: 85 | B108: Зачеканка стен под уголками и полосами цементно-песчаным раствором М50, толщиной 10 мм | C108: м3 | D108: 0.03
B109: Усиление стены УС-4.1/УС-4.3
A110: =A108+1 -> 86 | B110: Усиление конструктивных элементов: стен кирпичных стальными обоймами | C110: кг | D110: 1192.48 | F110: В том числе элементы обойм: - Сталь полосовая (100х8 мм), общий вес – (16,2+10,55+33,54)*8=482,32 кг; - Сталь угловая равнополочная, марка стали: Ст3пс, шириной полок 100-100 мм, общий вес – 65,42*8=523,36 кг; - Шпилька резьбовая STARFIX М16х890 (Класс прочности 8.8), общий вес – 16,87*8=134,96 кг, 96 шт.; - Гайка стальная оцинкованная сферическая для анкерного стержня, диаметр 16 мм, общий вес – 0,45*8= 3,6 кг, 96 шт.; - Шайбы оцинкованные, диаметр 16 мм, общий вес – 0,12*8=0,96 кг, 96 шт.; - Сталь арматурная рифленая свариваемая, класс А500С, диаметр 12 мм, общий вес – 4,44*6=26,64 кг; - Сталь арматурная рифленая свариваемая, класс А500С, диаметр 8 мм, общий вес – 3,44*6=20,64 кг
A111: =A110+1 -> 87 | B111: Сверление отверстий в стене Ø20 мм l=530 мм, l=270 мм | C111: шт. | D111: 128
A112: =A111+1 -> 88 | B112: Очистка поверхности стен щетками | C112: м2 | D112: 58.43
A113: 89 | B113: Обеспыливание поверхности стен | C113: м2 | D113: 58.43
A114: 90 | B114: Обезжиривание поверхностей стен | C114: м2 | D114: 58.43
A115: 91 | B115: Огрунтовка металлических поверхностей в 2 слоя | C115: м2 | D115: 32.44
A116: 92 | B116: Частичный демонтаж кирпичной кладки | C116: м3 | D116: 2.87
A117: 93 | B117: Кладка перегородок из кирпича (КР-р-по250х120х65/1НФ/150/2.0/75) | C117: м3 | D117: 3.16
A118: 94 | B118: Выравнивание поверхности стен цементно-песчаным раствором М50, толщиной 10 мм | C118: м3 | D118: 0.58
A119: 95 | B119: Зачеканка стен под уголками и полосами цементно-песчаным раствором М50, толщиной 10 мм | C119: м3 | D119: 0.14
A120: 96 | B120: Зачеканка трещин между стеной и колонной цементно-песчаным раствором М200 | C120: м3 | D120: 0.1
B121: Примыкание колонны к стеновой панели
A122: =A120+1 -> 97 | B122: Устройство уплотнителя (шнур Вилатерм 60) в примыкании колонны к стеновым панелям | C122: м.п. | D122: 73
A123: =A122+1 -> 98 | B123: Заделка примыкания колонны к стеновым панелям цементно-песчаным раствором М200 | C123: м3 | D123: 0.39
B124: Усиление примыкания колонн каркаса к кирпичным стенам 3-го этажа
B125: Усиление стены УС-2.1
A126: =A123+1 -> 99 | B126: Усиление конструктивных элементов: стен кирпичных стальными обоймами | C126: кг | D126: 206.67 | F126: В том числе элементы обойм: - Сталь полосовая (100х8 мм), общий вес – (78,37+33,54+19,22)=131,13 кг; - Сталь угловая равнополочная, марка стали: Ст3пс, шириной полок 100-100 мм, общий вес – 69,09 кг; - Шпилька резьбовая STARFIX М16х620 (Класс прочности 8.8), общий вес –5,88 кг, 6 шт.; - Гайка стальная оцинкованная сферическая для анкерного стержня, диаметр 16 мм, общий вес – 0,45 кг, 12 шт.; - Шайбы оцинкованные, диаметр 16 мм, общий вес – 0,12 кг, 12 шт.
A127: =A126+1 -> 100 | B127: Сверление отверстий в стене Ø20 мм l=530 мм | C127: шт. | D127: 6
A128: =A127+1 -> 101 | B128: Очистка поверхности стен щетками | C128: м2 | D128: 7.43
A129: 102 | B129: Обеспыливание поверхности стен | C129: м2 | D129: 7.43
A130: 103 | B130: Обезжиривание поверхностей стен | C130: м2 | D130: 7.43
A131: 104 | B131: Огрунтовка металлических поверхностей в 2 слоя | C131: м2 | D131: 4.18
A132: 105 | B132: Выравнивание поверхности стен цементно-песчаным раствором М50, толщиной 10 мм | C132: м3 | D132: 0.07
A133: 106 | B133: Зачеканка стен под уголками и полосами цементно-песчаным раствором М50, толщиной 10 мм | C133: м3 | D133: 0.03
A134: 107 | B134: Устройство подливки цементно-песчаным раствором М200 | C134: м3 | D134: 0.19
B135: Усиление стены УС-3.1
A136: =A134+1 -> 108 | B136: Усиление конструктивных элементов: стен кирпичных стальными обоймами | C136: кг | D136: 186.22 | F136: В том числе элементы обойм: - Сталь полосовая (100х8 мм), общий вес – (105,5+67,07)=172,57 кг; - Шпилька резьбовая STARFIX М16х660 (Класс прочности 8.8), общий вес –12,51 кг, 12 шт.; - Гайка стальная оцинкованная сферическая для анкерного стержня, диаметр 16 мм, общий вес – 0,90 кг, 24 шт.; - Шайбы оцинкованные, диаметр 16 мм, общий вес – 0,24 кг, 24 шт.
A137: =A136+1 -> 109 | B137: Сверление отверстий в стене Ø20 мм l=530 мм | C137: шт. | D137: 12
A138: =A137+1 -> 110 | B138: Очистка поверхности стен щетками | C138: м2 | D138: 7.56
A139: 111 | B139: Обеспыливание поверхности стен | C139: м2 | D139: 7.56
A140: 112 | B140: Обезжиривание поверхностей стен | C140: м2 | D140: 7.56
A141: 113 | B141: Огрунтовка металлических поверхностей в 2 слоя | C141: м2 | D141: 5.5
A142: 114 | B142: Выравнивание поверхности стен цементно-песчаным раствором М50, толщиной 10 мм | C142: м3 | D142: 0.08
A143: 115 | B143: Зачеканка стен под уголками и полосами цементно-песчаным раствором М50, толщиной 10 мм | C143: м3 | D143: 0.03
B144: Усиление стены УС-4.1/УС-4.3
A145: =A143+1 -> 116 | B145: Усиление конструктивных элементов: стен кирпичных стальными обоймами | C145: кг | D145: 1192.48 | F145: В том числе элементы обойм: - Сталь полосовая (100х8 мм), общий вес – (16,2+10,55+33,54)*8=482,32 кг; - Сталь угловая равнополочная, марка стали: Ст3пс, шириной полок 100-100 мм, общий вес – 65,42*8=521,6 кг; - Шпилька резьбовая STARFIX М16х890 (Класс прочности 8.8), общий вес – 16,87*8=134,96 кг, 96 шт.; - Гайка стальная оцинкованная сферическая для анкерного стержня, диаметр 16 мм, общий вес – 0,45*8= 3,6 кг, 96 шт.; - Шайбы оцинкованные, диаметр 16 мм, общий вес – 0,12*8=0,96 кг, 96 шт.; - Сталь арматурная рифленая свариваемая, класс А500С, диаметр 12 мм, общий вес – 4,44*6=26,64 кг; - Сталь арматурная рифленая свариваемая, класс А500С, диаметр 8 мм, общий вес – 3,44*6=20,64 кг
A146: =A145+1 -> 117 | B146: Сверление отверстий в стене Ø20 мм l=530 мм, l=270 мм | C146: шт. | D146: 128
A147: =A146+1 -> 118 | B147: Очистка поверхности стен щетками | C147: м2 | D147: 58.43
A148: 119 | B148: Обеспыливание поверхности стен | C148: м2 | D148: 58.43
A149: 120 | B149: Обезжиривание поверхностей стен | C149: м2 | D149: 58.43
A150: 121 | B150: Огрунтовка металлических поверхностей в 2 слоя | C150: м2 | D150: 32.44
A151: 122 | B151: Частичный демонтаж кирпичной кладки | C151: м3 | D151: 2.87
A152: 123 | B152: Кладка перегородок из кирпича (КР-р-по250х120х65/1НФ/150/2.0/75) | C152: м3 | D152: 3.16
A153: 124 | B153: Выравнивание поверхности стен цементно-песчаным раствором М50, толщиной 10 мм | C153: м3 | D153: 0.58
A154: 125 | B154: Зачеканка стен под уголками и полосами цементно-песчаным раствором М50, толщиной 10 мм | C154: м3 | D154: 0.14
A155: 126 | B155: Зачеканка трещин между стеной и колонной цементно-песчаным раствором М200 | C155: м3 | D155: 0.1
B156: Примыкание колонны к стеновой панели
A157: =A155+1 -> 127 | B157: Устройство уплотнителя в примыкании колонны к стеновым панелям | C157: м.п. | D157: 73
A158: =A157+1 -> 128 | B158: Заделка примыкания колонны к стеновым панелям цементно-песчаным раствором М200 | C158: м3 | D158: 0.39
B159: Усиление примыкания колонн каркаса к кирпичным стенам 4-го этажа
B160: Усиление стены УС-2.2
A161: =A158+1 -> 129 | B161: Усиление конструктивных элементов: стен кирпичных стальными обоймами | C161: кг | D161: 498.5 | F161: В том числе элементы обойм: - Сталь полосовая (100х8 мм), общий вес – (91,44+43,33+22,42)*2=314,38; - Сталь угловая равнополочная, марка стали: Ст3пс, шириной полок 100-100 мм, общий вес – 84,53*2=169,06 кг; - Шпилька резьбовая STARFIX М16х620 (Класс прочности 8.8), общий вес –6,86*2= 13,72 кг, 14 шт.; - Гайка стальная оцинкованная сферическая для анкерного стержня, диаметр 16 мм, общий вес – 1,06 кг, 28 шт.; - Шайбы оцинкованные, диаметр 16 мм, общий вес – 0,28 кг, 28 шт.
A162: =A161+1 -> 130 | B162: Частичный демонтаж кирпичной кладки | C162: м3 | D162: 0.25
A163: =A162+1 -> 131 | B163: Сверление отверстий в стене Ø20 мм l=530 мм | C163: шт. | D163: 12
A164: 132 | B164: Очистка поверхности стен щетками | C164: м2 | D164: 18.55
A165: 133 | B165: Обеспыливание поверхности стен | C165: м2 | D165: 18.55
A166: 134 | B166: Обезжиривание поверхностей стен | C166: м2 | D166: 18.55
A167: 135 | B167: Огрунтовка металлических поверхностей в 2 слоя | C167: м2 | D167: 10.01
A168: 136 | B168: Выравнивание поверхности стен цементно-песчаным раствором М50, толщиной 10 мм | C168: м3 | D168: 0.19
A169: 137 | B169: Зачеканка стен под уголками и полосами цементно-песчаным раствором М50, толщиной 10 мм | C169: м3 | D169: 0.07
A170: 138 | B170: Устройство подливки цементно-песчаным раствором М200 | C170: м3 | D170: 0.24
B171: Усиление стены УС-4.2/УС-4.4
A172: =A170+1 -> 139 | B172: Усиление конструктивных элементов: стен кирпичных стальными обоймами | C172: кг | D172: 1308.56 | F172: В том числе элементы обойм: - Сталь полосовая (100х8 мм), общий вес – (18,9+12,31+43,33)*7=521,78 кг; - Сталь угловая равнополочная, марка стали: Ст3пс, шириной полок 100-100 мм, общий вес – 84,53*7=591,71 кг; - Шпилька резьбовая STARFIX М16х890 (Класс прочности 8.8), общий вес – 19,69*7=137,83 кг, 98 шт.; - Гайка стальная оцинкованная сферическая для анкерного стержня, диаметр 16 мм, общий вес – 0,53*7= 3,71 кг, 98 шт.; - Шайбы оцинкованные, диаметр 16 мм, общий вес – 0,14*7=0,98 кг, 98 шт.; - Сталь арматурная рифленая свариваемая, класс А500С, диаметр 12 мм, общий вес – 5,77*5=28,85 кг; - Сталь арматурная рифленая свариваемая, класс А500С, диаметр 8 мм, общий вес – 4,74*5=23,7 кг
A173: =A172+1 -> 140 | B173: Сверление отверстий в стене Ø20 мм l=530 мм, l=270 мм | C173: шт. | D173: 128
A174: =A173+1 -> 141 | B174: Очистка поверхности стен щетками | C174: м2 | D174: 68.43
A175: 142 | B175: Обеспыливание поверхности стен | C175: м2 | D175: 68.43
A176: 143 | B176: Обезжиривание поверхностей стен | C176: м2 | D176: 68.43
A177: 144 | B177: Огрунтовка металлических поверхностей в 2 слоя | C177: м2 | D177: 35.94
A178: 145 | B178: Частичный демонтаж кирпичной кладки | C178: м3 | D178: 3.1
A179: 146 | B179: Кладка перегородок из кирпича (КР-р-по250х120х65/1НФ/150/2.0/75) | C179: м3 | D179: 3.41
A180: 147 | B180: Выравнивание поверхности стен цементно-песчаным раствором М50, толщиной 10 мм | C180: м3 | D180: 0.68
B181: Примыкание колонны к стеновой панели
A182: =A180+1 -> 148 | B182: Устройство уплотнителя в примыкании колонны к стеновым панелям | C182: м.п. | D182: 93.1
A183: =A182+1 -> 149 | B183: Заделка примыкания колонны к стеновым панелям цементно-песчаным раствором М200 | C183: м3 | D183: 0.49
B184: Усиление примыкания колонн каркаса к кирпичным стенам кровли
B185: Усиление стены УС-4
A186: =A183+1 -> 150 | B186: Усиление конструктивных элементов: стен кирпичных стальными обоймами | C186: кг | D186: 307.02 | F186: В том числе элементы обойм: - Сталь полосовая (100х8 мм), общий вес – (16,2+10,55+34,16)*2=121,82 кг; - Сталь угловая равнополочная, марка стали: Ст3пс, шириной полок 100-100 мм, общий вес – 66,64*2=133,28 кг; - Шпилька резьбовая STARFIX М16х890 (Класс прочности 8.8), общий вес – 16,87*2=33,74 кг, 24 шт.; - Гайка стальная оцинкованная сферическая для анкерного стержня, диаметр 16 мм, общий вес – 0,45*2= 0,90 кг, 24 шт.; - Шайбы оцинкованные, диаметр 16 мм, общий вес – 0,12*2=0,24 кг, 24 шт.; - Сталь арматурная рифленая свариваемая, класс А500С, диаметр 12 мм, общий вес – 4,65*2=9,3 кг; - Сталь арматурная рифленая свариваемая, класс А500С, диаметр 8 мм, общий вес – 3,87*2=7,74 кг
A187: =A186+1 -> 151 | B187: Сверление отверстий в стене Ø20 мм l=540 мм, l=270 мм | C187: шт. | D187: 60
A188: =A187+1 -> 152 | B188: Очистка поверхности стен щетками | C188: м2 | D188: 11.5
A189: 153 | B189: Обеспыливание поверхности стен | C189: м2 | D189: 11.5
A190: 154 | B190: Обезжиривание поверхностей стен | C190: м2 | D190: 11.5
A191: 155 | B191: Огрунтовка металлических поверхностей в 2 слоя | C191: м2 | D191: 24.69
A192: 156 | B192: Частичный демонтаж кирпичной кладки | C192: м3 | D192: 0.78
A193: 157 | B193: Кладка перегородок из кирпича (КР-р-по250х120х65/1НФ/150/2.0/75) | C193: м3 | D193: 0.86
A194: 158 | B194: Выравнивание поверхности стен цементно-песчаным раствором М50, толщиной 10 мм | C194: м3 | D194: 0.11
A195: 159 | B195: Зачеканка стен под уголками и полосами цементно-песчаным раствором М50, толщиной 10 мм | C195: м3 | D195: 0.11
A196: 160 | B196: Зачеканка трещин между стеной и колонной цементно-песчаным раствором М200 | C196: м3 | D196: 0.11
B197: Устройство отмостки и крылец
B198: Устройство отмостки
A199: =A196+1 -> 161 | B199: Разработка грунта вручную, h=0,38 м | C199: м3 | D199: 30.4
A200: =A199+1 -> 162 | B200: Перевозка грузов I класса автомобилями-самосвалами грузоподъемностью 10 т работающих вне карьера на расстояние до 47 км | C200: т | D200: 34.2
A201: =A200+1 -> 163 | B201: Погрузка при автомобильных перевозках мусора строительного с погрузкой вручную | C201: т | D201: 34.2
A202: 164 | B202: Обратная засыпка грунта вручную, h=0,38 м | C202: м3 | D202: 11.4
A203: 165 | B203: Уплотнение грунта пневматическими трамбовками, группа грунтов: 1-2 | C203: м3 | D203: 11.4
A204: 166 | B204: Устройство щебеночного основания под фундамент из щебня М400 фр. 20-40 | C204: м3 | D204: 2.8
... 727 more rows

Sheet Лист2
B6: 8.475 | C6: =(0.45*4) -> 1.8 | D6: =C6/0.2 -> 9 | E6: =(D6*B6)*2 -> 152.55
B7: 8.8 | C7: =24-(0.45*4) -> 22.2 | D7: =C7/0.2 -> 111 | E7: =(D7*B7)*2 -> 1953.6 | G7: =E7+E6 -> 2106.15
G8: =E9+E10 -> 2052.11875
B9: 5.575 | C9: =0.325 -> 0.325 | D9: =C9/0.2 -> 1.625 | E9: =(D9*B9)*2 -> 18.11875
B10: 24 | C10: =8.475 -> 8.475 | D10: =C10/0.2 -> 42.375 | E10: =(D10*B10)*2 -> 2034 | G10: 0.888 | H10: =((E6+E7+E9+E10)*G10)*0.001 -> 3.69254265
H14: =0.25*0.125*0.025 -> 0.00078125 | O14: =3.14*0.84 -> 2.6376
I16: =H14*61 -> 0.04765625 | O16: =0.125*4 -> 0.5
J17: =I16*3 -> 0.14296875
E18: 1 | F18: 0.2 | G18: =E18/F18 -> 5 | K18: =J17*2 -> 0.2859375 | O18: =O14*O16 -> 1.3188 | Q18: =O18*2 -> 2.6376
E19: 1 | F19: 0.2 | G19: =E19/F19 -> 5 | H19: =(G18+G19)*G10 -> 8.88
B25: =382060/19103 -> 20
B26: =477575/19103 -> 25
